bitfinex/quotes_SOLUSD_20250815
["timestamp","ask_amount","ask_price","bid_price","bid_amount"]
[1755288089539,26.0,184.31,184.25,0.03]
[1755288089540,14.45611558,184.26,184.25,0.03]
[1755288090944,0.68,184.26,184.25,0.03]
[1755288091252,0.68,184.3,184.25,0.03]
[1755288091448,13.77611558,184.29,184.25,0.03]
[1755288091643,14.45611558,184.26,184.25,0.03]
[1755288092046,0.68,184.26,184.25,0.03]
[1755288092377,0.68,184.26,184.21,0.03]
[1755288092378,26.0,184.22,184.21,0.03]
[1755288092525,40.45611558,184.22,184.21,0.03]
[1755288092732,26.0,184.22,184.21,0.03]
[1755288092951,0.68,184.22,184.21,0.03]
[1755288093146,14.45611558,184.22,184.21,0.03]
[1755288093453,26.68,184.25,184.21,0.03]
[1755288093667,13.77611558,184.22,184.21,0.03]
[1755288094020,13.77611558,184.26,184.21,13.80611558]
[1755288094262,3.5011797,184.25,184.21,13.80611558]
[1755288094562,26.68,184.26,184.22,13.77611558]
[1755288094724,3.50122087,184.25,184.22,13.77611558]
[1755288094926,0.68,184.29,184.24,13.77611558]
[1755288095183,3.50167714,184.28,184.25,13.77611558]
[1755288095322,3.50167714,184.27,184.26,13.77611558]
[1755288096025,3.50167714,184.27,184.26,19.20322944]
[1755288096251,18.8438643,184.32,184.26,19.20322944]
[1755288096252,4.38774872,184.31,184.26,19.20322944]
[1755288096557,8.58710671,184.3,184.26,5.42711386]
[1755288096725,8.58710671,184.29,184.26,5.42711386]
[1755288096931,7.90710671,184.28,184.26,19.20322944]
[1755288097134,3.51935799,184.27,184.26,19.20322944]
[1755288097533,3.51935799,184.27,184.26,19.23322944]
[1755288097946,3.51935799,184.27,184.26,19.20322944]
[1755288098355,3.51935799,184.27,184.26,19.23322944]
[1755288098650,4.38774872,184.34,184.27,15.10621557]
[1755288098833,4.38774872,184.34,184.31,13.77611558]
[1755288099038,5.06774872,184.34,184.32,13.77611558]
[1755288099242,0.68,184.34,184.27,15.10621557]
[1755288099455,5.06774872,184.33,184.28,13.77611558]
[1755288099638,4.38774872,184.33,184.32,13.77611558]
[1755288099968,5.06774872,184.33,184.29,13.77611558]
[1755288100137,4.42207117,184.31,184.27,13.77611558]
[1755288100336,4.42207117,184.3,184.27,13.77611558]
[1755288100751,18.87818675,184.29,184.25,42.42]
[1755288100950,4.42207117,184.26,184.25,42.42]
[1755288101259,5.10207117,184.26,184.22,19.20437618]
[1755288101470,4.42207117,184.24,184.21,61.61468256]
[1755288101849,4.42207117,184.23,184.21,0.03]
[1755288102053,5.10207117,184.23,184.21,0.03]
[1755288102366,4.42207117,184.23,184.22,13.77611558]
[1755288102570,4.42207117,184.25,184.22,13.77611558]
[1755288102776,4.42207117,184.25,184.23,13.77611558]
[1755288102979,4.42207117,184.26,184.23,13.77611558]
[1755288103470,4.43544419,184.3,184.25,13.77611558]
[1755288103649,4.43544419,184.3,184.29,13.77611558]
[1755288104058,4.43544419,184.3,184.29,19.20234597]
[1755288104466,4.43544419,184.31,184.29,19.20234597]
[1755288104646,4.43544419,184.31,184.3,13.77611558]
[1755288104853,4.43544419,184.32,184.3,13.77611558]
[1755288105067,0.06,184.33,184.31,13.77611558]
[1755288105278,4.45095164,184.32,184.31,13.77611558]
[1755288105490,4.45095164,184.32,184.29,5.42623039]
[1755288105491,5.15095164,184.32,184.3,42.34]
[1755288105666,4.45095164,184.31,184.3,42.34]
[1755288106180,0.06,184.33,184.3,38.60165437]
[1755288106389,5.21707959,184.33,184.29,19.20229004]
[1755288106558,13.77611558,184.3,184.25,0.03]
[1755288106758,13.77611558,184.28,184.25,0.03]
[1755288107168,14.47611558,184.28,184.25,0.03]
[1755288107659,4.45707959,184.3,184.27,13.77611558]
[1755288107854,26.0,184.31,184.25,5.45737265]
[1755288107855,4.45707959,184.31,184.25,47.71737265]
[1755288108071,5.15707959,184.29,184.25,42.29]
[1755288108374,0.7,184.28,184.25,61.49349492]
[1755288108574,4.45707959,184.29,184.25,61.49349492]
[1755288108772,4.45707959,184.3,184.28,13.77611558]
[1755288108959,5.15707959,184.3,184.26,13.77611558]
[1755288109166,4.45707959,184.3,184.27,13.77611558]
[1755288109375,0.7,184.3,184.26,13.77611558]
[1755288109556,0.7,184.29,184.26,13.77611558]
[1755288109879,0.7,184.29,184.25,61.49349492]
[1755288110192,0.7,184.29,184.26,13.77611558]
[1755288110472,3.56827765,184.28,184.27,13.77611558]
[1755288110778,3.56827765,184.28,184.25,61.49349492]
[1755288110984,3.56827765,184.27,184.25,61.49349492]
[1755288111156,13.77611558,184.32,184.26,13.77611558]
[1755288111362,3.56971149,184.31,184.27,13.77611558]
[1755288111674,0.06,184.33,184.3,13.77611558]
[1755288111875,3.56949278,184.32,184.31,13.77611558]
[1755288112064,3.56949278,184.32,184.3,13.77611558]
[1755288112253,3.56949278,184.31,184.29,42.18]
[1755288112573,3.56949278,184.3,184.29,42.18]
[1755288112793,18.04560836,184.3,184.26,42.18]
[1755288112999,4.26949278,184.29,184.26,42.18]
[1755288113154,3.56949278,184.28,184.25,0.03]
[1755288113359,13.77611558,184.26,184.25,0.03]
[1755288113562,17.34560836,184.26,184.25,0.03]
[1755288113774,18.04560836,184.26,184.23,0.03]
[1755288113992,4.26949278,184.25,184.23,0.03]
[1755288114198,17.34560836,184.24,184.23,0.03]
[1755288114491,18.04560836,184.24,184.23,0.03]
[1755288114675,40.47611558,184.27,184.23,0.03]
[1755288114865,14.47611558,184.29,184.23,0.03]
[1755288115062,3.57228151,184.28,184.23,0.03]
[1755288115284,3.57228151,184.28,184.24,13.77611558]
[1755288115465,4.27228151,184.28,184.24,13.77611558]
[1755288115665,4.27228151,184.28,184.23,13.80611558]
[1755288115866,0.7,184.27,184.23,13.80611558]
[1755288116101,3.57228151,184.27,184.23,0.03]
[1755288116389,3.57228151,184.26,184.23,19.23411319]
[1755288116589,4.27536932,184.27,184.23,19.23411319]
[1755288116793,3.57536932,184.27,184.23,19.23411319]
[1755288116989,26.7,184.29,184.24,13.77611558]
[1755288117175,3.57557811,184.28,184.25,13.77611558]
[1755288117492,0.7,184.29,184.25,13.77611558]
[1755288117794,3.57557811,184.28,184.26,13.77611558]
[1755288117998,3.57557811,184.31,184.27,13.77611558]
[1755288118197,0.06,184.33,184.29,19.20213312]
[1755288118362,4.28072281,184.32,184.27,5.42661544]
[1755288118565,18.05683839,184.31,184.24,5.42770299]
[1755288118780,18.05683839,184.3,184.24,19.20381857]
[1755288118994,18.05683839,184.29,184.24,5.42770299]
[1755288119167,3.58072281,184.28,184.24,5.42770299]
[1755288119368,3.58072281,184.27,184.24,5.42770299]
[1755288119563,3.58072281,184.28,184.24,5.42770299]
[1755288119765,4.28072281,184.27,184.23,61.29404418]
[1755288120097,3.58072281,184.26,184.24,13.77611558]
[1755288120282,17.35683839,184.29,184.24,13.77611558]
[1755288120486,17.35683839,184.29,184.23,47.51790446]
[1755288120487,4.28072281,184.28,184.25,0.03]
[1755288120686,3.58072281,184.27,184.25,0.03]
[1755288120994,4.28072281,184.28,184.25,0.03]
[1755288121296,0.06,184.32,184.27,13.77611558]
[1755288121596,0.06,184.32,184.27,42.02]
[1755288121891,0.06,184.32,184.3,13.77611558]
[1755288122276,0.76,184.32,184.29,12.00127362]
[1755288122599,0.06,184.32,184.31,12.00127362]
[1755288123672,0.06,184.32,184.3,12.00127362]
[1755288124196,0.06,184.32,184.31,12.00127362]
[1755288124401,0.06,184.32,184.31,17.4269152]
[1755288124697,4.34578844,184.32,184.29,12.00127362]
[1755288125378,4.34578844,184.32,184.3,12.00127362]
[1755288125575,0.7,184.31,184.28,17.42779847]
[1755288125908,16.28577439,184.3,184.25,0.03]
[1755288126073,12.00127362,184.28,184.25,0.03]
[1755288126479,0.7,184.27,184.25,0.03]
[1755288126680,3.58511899,184.28,184.25,0.03]
[1755288126909,0.76,184.32,184.27,12.00127362]
[1755288127098,3.58541826,184.31,184.3,12.00127362]
[1755288127280,0.06,184.32,184.3,12.00127362]
[1755288127486,3.64633815,184.32,184.3,12.00127362]
[1755288127716,0.06,184.32,184.3,12.00127362]
[1755288127889,3.6462983,184.32,184.29,12.00127362]
[1755288128091,3.6462983,184.32,184.3,12.00127362]
[1755288128407,3.6462983,184.32,184.27,41.9]
[1755288128408,0.7,184.31,184.27,41.9]
[1755288128600,4.28565532,184.3,184.27,41.9]
[1755288128780,3.58565532,184.3,184.28,12.00127362]
[1755288128992,3.64565532,184.32,184.29,12.00127362]
[1755288129423,3.64565532,184.32,184.28,12.00127362]
[1755288129731,4.34565532,184.32,184.28,12.00127362]
[1755288129927,0.76,184.32,184.29,5.42623039]
[1755288130094,0.7,184.31,184.29,5.42623039]
[1755288130497,0.7,184.31,184.28,5.42649207]
[1755288130729,3.58565532,184.3,184.28,5.42649207]
[1755288131033,4.28565532,184.31,184.28,17.42776569]
[1755288131231,0.06,184.32,184.3,12.00127362]
[1755288131916,0.76,184.32,184.28,5.42649207]
[1755288132132,0.7,184.31,184.28,17.42776569]
[1755288132336,0.06,184.32,184.28,17.42776569]
[1755288132697,0.76,184.32,184.28,17.42776569]
[1755288133134,0.76,184.32,184.29,12.00127362]
[1755288133327,0.06,184.32,184.29,12.00127362]
[1755288133528,0.06,184.32,184.31,12.00127362]
[1755288133835,0.06,184.32,184.31,53.70127362]
[1755288134010,0.06,184.32,184.31,59.1269152]
[1755288134207,0.06,184.32,184.31,74.23313077]
[1755288134430,0.06,184.32,184.31,74.29313077]
[1755288134633,0.06,184.32,184.31,47.12564158]
[1755288134831,0.76,184.32,184.31,47.12564158]
[1755288135013,0.06,184.32,184.31,59.1269152]
[1755288135215,0.06,184.32,184.31,74.23313077]
[1755288135534,0.06,184.32,184.31,74.29313077]
[1755288135732,0.06,184.32,184.31,74.23313077]
[1755288136806,0.06,184.32,184.31,74.29313077]
[1755288137249,0.06,184.32,184.31,74.23313077]
[1755288137754,0.06,184.34,184.32,15.10621557]
[1755288138032,0.06,184.36,184.35,20.5306799]
[1755288138234,0.06,184.37,184.36,12.00127362]
[1755288138419,0.06,184.37,184.36,53.62127362]
[1755288138608,0.06,184.37,184.36,41.62]
[1755288139046,0.74,184.37,184.36,41.62]
[1755288139735,12.74127362,184.37,184.31,17.42666245]
[1755288140031,16.27072515,184.36,184.32,41.56]
[1755288140241,4.27209181,184.35,184.32,41.56]
[1755288140436,0.68,184.35,184.32,41.56]
[1755288141040,0.68,184.34,184.32,41.56]
[1755288142021,0.68,184.34,184.32,46.98534169]
[1755288142237,0.74,184.37,184.33,12.00127362]
[1755288142440,0.06,184.37,184.34,12.00127362]
[1755288142640,0.06,184.37,184.36,12.00127362]
[1755288143138,0.06,184.37,184.34,53.48127362]
[1755288143514,0.06,184.37,184.33,12.00127362]
[1755288143719,0.68,184.36,184.34,41.46]
[1755288144010,0.06,184.37,184.35,5.42446433]
[1755288144216,0.06,184.37,184.35,17.42573795]
[1755288145045,0.06,184.37,184.36,12.00127362]
[1755288145345,0.06,184.37,184.35,5.42446433]
[1755288145554,0.06,184.37,184.36,12.00127362]
[1755288146111,0.06,184.37,184.36,17.42544372]
[1755288146348,0.06,184.37,184.36,5.4241701]
[1755288147742,0.06,184.37,184.34,41.46]
[1755288147743,0.74,184.37,184.34,41.46]
[1755288148155,12.06127362,184.37,184.34,46.88458982]
[1755288148360,0.68,184.36,184.34,41.46]
[1755288148729,0.68,184.35,184.34,41.46]
[1755288149456,0.68,184.35,184.33,41.36]
[1755288149457,12.68127362,184.35,184.33,41.36]
[1755288149656,0.06,184.37,184.3,5.42568227]
[1755288149657,12.00127362,184.34,184.32,41.36]
[1755288149963,0.68,184.33,184.32,41.36]
[1755288150335,12.68127362,184.33,184.27,17.45783233]
[1755288150556,12.68127362,184.33,184.28,53.34127362]
[1755288150557,0.68,184.33,184.28,53.34127362]
[1755288150860,12.00127362,184.34,184.28,53.34127362]
[1755288150861,12.68127362,184.32,184.28,41.34]
[1755288151164,0.68,184.31,184.28,41.34]
[1755288152459,38.00127362,184.34,184.28,46.76641645]
[1755288152636,3.59089068,184.33,184.29,12.00127362]
[1755288152835,38.00127362,184.34,184.29,12.00127362]
[1755288153035,12.74127362,184.37,184.32,12.00127362]
[1755288153232,3.59157186,184.36,184.32,53.28127362]
[1755288153449,4.27157186,184.36,184.32,41.28]
[1755288153650,3.59157186,184.36,184.34,12.00127362]
[1755288153853,3.65157186,184.37,184.35,53.26127362]
[1755288154066,0.06,184.37,184.36,12.00127362]
[1755288154561,0.06,184.37,184.36,17.42544372]
[1755288155637,16.33369664,184.37,184.32,41.26]
[1755288155844,16.27369664,184.36,184.32,41.26]
[1755288156142,16.27369664,184.36,184.32,53.26127362]
[1755288156143,0.68,184.36,184.32,53.26127362]
[1755288156958,0.68,184.36,184.32,46.68527417]
[1755288157169,4.27156907,184.36,184.32,58.68654779]
[1755288157345,4.27147113,184.36,184.32,58.68654779]
[1755288157663,4.27147113,184.36,184.32,41.26]
[1755288157664,0.68,184.35,184.32,41.26]
[1755288157837,0.68,184.34,184.32,41.26]
[1755288158038,4.27147113,184.34,184.32,41.26]
[1755288158238,0.68,184.33,184.32,41.26]
[1755288159438,4.27312238,184.33,184.32,41.26]
[1755288159640,12.68127362,184.33,184.3,41.18]
[1755288160158,16.27652104,184.32,184.27,0.03]
[1755288160362,12.00127362,184.31,184.28,41.16]
[1755288160548,0.68,184.3,184.28,41.16]
[1755288160865,12.00127362,184.31,184.28,41.16]
[1755288161065,12.00127362,184.29,184.27,0.03]
[1755288161234,30.45707959,184.35,184.27,0.03]
[1755288161235,16.27748474,184.28,184.27,0.03]
[1755288161441,4.27621112,184.28,184.27,0.03]
[1755288162771,3.59621112,184.28,184.27,0.03]
[1755288163371,3.59484913,184.3,184.27,0.03]
[1755288163573,0.68,184.31,184.27,0.03]
[1755288163869,4.27498361,184.3,184.27,0.03]
[1755288164089,0.68,184.3,184.27,0.03]
[1755288164247,3.59547726,184.29,184.27,0.03]
[1755288164447,0.68,184.3,184.27,0.03]
[1755288164448,12.00127362,184.3,184.27,0.03]
[1755288164652,4.275474,184.29,184.27,0.03]
[1755288164851,3.595474,184.28,184.27,0.03]
[1755288166068,4.27541584,184.29,184.27,0.03]
[1755288166271,3.59578396,184.28,184.27,0.03]
[1755288166974,0.68,184.29,184.27,0.03]
[1755288167358,12.70127362,184.35,184.28,52.98127362]
[1755288167545,12.00127362,184.33,184.28,52.98127362]
[1755288167741,3.59619893,184.32,184.29,12.00127362]
[1755288167943,3.59619893,184.33,184.3,12.00127362]
[1755288168160,12.70127362,184.35,184.3,12.00127362]
[1755288168365,3.59627869,184.34,184.31,41.0]
[1755288168577,12.00127362,184.32,184.28,41.0]
[1755288168872,17.42753512,184.29,184.27,0.03]
[1755288169165,15.59675933,184.28,184.27,0.03]
[1755288169378,16.29675933,184.28,184.27,0.03]
[1755288169679,12.00127362,184.27,184.25,0.03]
[1755288169971,15.59675933,184.26,184.25,0.03]
[1755288170178,16.29675933,184.26,184.25,0.03]
[1755288170601,21.72387319,184.26,184.25,0.03]
[1755288170770,16.29675933,184.26,184.25,0.03]
[1755288171784,4.29548571,184.26,184.25,0.03]
[1755288172289,16.29675933,184.26,184.25,0.03]
[1755288173464,15.59675933,184.26,184.25,0.03]
[1755288173797,41.0,184.32,184.25,12.15127362]
[1755288173798,0.7,184.32,184.25,12.15127362]
[1755288173983,3.5937773,184.31,184.27,12.00127362]
[1755288174499,4.29382625,184.32,184.28,12.00127362]
[1755288174804,4.29382625,184.32,184.29,5.42623039]
[1755288174805,3.59382625,184.32,184.29,5.42623039]
[1755288175605,4.29382625,184.32,184.29,5.42623039]
[1755288176107,16.29677825,184.31,184.26,52.96127362]
[1755288176268,12.00127362,184.29,184.26,40.96]
[1755288176625,0.7,184.28,184.26,5.42704866]
[1755288176900,12.70127362,184.3,184.25,5.45740841]
[1755288177117,26.0,184.32,184.26,12.00127362]
[1755288177118,38.00127362,184.32,184.26,12.00127362]
[1755288177276,3.59627576,184.31,184.27,12.00127362]
[1755288177472,3.59627576,184.3,184.26,12.00127362]
[1755288177803,4.29627576,184.3,184.26,12.00127362]
[1755288178012,4.29627576,184.3,184.25,5.45740841]
[1755288178307,4.29627576,184.29,184.25,17.45868203]
[1755288179091,3.59627576,184.29,184.26,12.00127362]
[1755288179303,12.00127362,184.31,184.26,12.00127362]
[1755288179304,3.59627576,184.3,184.26,12.00127362]
[1755288179509,4.29627576,184.3,184.26,12.00127362]
[1755288179821,0.7,184.33,184.28,12.00127362]
[1755288180022,3.59450141,184.32,184.28,12.00127362]
[1755288180317,3.59450141,184.31,184.28,12.00127362]
[1755288180517,3.59450141,184.32,184.28,12.00127362]
[1755288180723,3.59374353,184.33,184.31,8.04068714]
[1755288180878,3.59374353,184.36,184.32,8.04068714]
[1755288181082,3.59374353,184.36,184.35,8.04068714]
[1755288181313,0.06,184.37,184.35,8.04068714]
[1755288181487,0.06,184.37,184.34,0.54247585]
[1755288181700,0.06,184.37,184.35,8.04068714]
[1755288182017,0.06,184.37,184.33,5.42505289]
[1755288182018,3.59449737,184.36,184.33,13.46574003]
[1755288182195,4.35449737,184.37,184.33,13.46574003]
[1755288182382,4.29449737,184.36,184.32,13.46596997]
[1755288183203,4.2931752,184.36,184.32,13.46596997]
[1755288183409,3.5931752,184.36,184.32,13.46596997]
[1755288183612,3.5931752,184.36,184.33,8.04068714]
[1755288184215,3.5931752,184.36,184.32,13.46596997]
[1755288184698,3.5931752,184.35,184.32,5.42528283]
[1755288184899,0.7,184.36,184.32,13.46596997]
[1755288185088,3.59311269,184.35,184.32,13.46596997]
[1755288185615,0.06,184.37,184.33,8.04068714]
[1755288185787,3.59309865,184.36,184.33,8.04068714]
[1755288185986,0.06,184.37,184.33,8.04068714]
[1755288186281,0.06,184.37,184.32,5.42528283]
[1755288186282,3.59287463,184.36,184.32,5.42528283]
[1755288186487,4.29287463,184.36,184.33,8.04068714]
[1755288186689,0.06,184.37,184.33,8.04068714]
[1755288186997,3.59540408,184.36,184.33,8.04068714]
[1755288187193,3.65521112,184.37,184.35,8.04068714]
[1755288187394,0.06,184.37,184.36,5.5441701]
[1755288187602,0.06,184.37,184.36,13.58485724]
[1755288187915,0.06,184.37,184.36,13.46485724]
[1755288188502,0.76,184.37,184.32,15.10621557]
[1755288188700,3.5966697,184.36,184.34,40.7]
[1755288188898,3.6566697,184.37,184.34,48.74068714]
[1755288189724,4.2966697,184.36,184.34,46.12462706]
[1755288190020,3.6566697,184.37,184.34,46.12462706]
[1755288190325,3.6566697,184.37,184.34,54.1653142]
[1755288190517,3.6566697,184.37,184.34,46.12462706]
[1755288190685,3.6566697,184.37,184.34,54.1653142]
[1755288190884,4.2966697,184.36,184.34,40.7]
[1755288191684,3.65559577,184.37,184.35,8.04068714]
[1755288191914,3.65559577,184.37,184.36,8.04068714]
[1755288192087,3.65559577,184.37,184.35,8.04068714]
[1755288193336,0.06,184.37,184.35,8.04068714]
[1755288193822,0.06,184.37,184.36,13.46485724]
[1755288195413,0.06,184.37,184.34,40.7]
[1755288195414,12.37697729,184.37,184.34,40.7]
[1755288195622,12.31697729,184.36,184.33,40.6]
[1755288195796,0.68,184.35,184.33,40.62]
[1755288195998,3.59629015,184.36,184.33,40.62]
[1755288196226,3.59629015,184.36,184.34,8.04068714]
[1755288196521,0.06,184.37,184.35,8.04068714]
[1755288196724,0.06,184.37,184.36,48.64068714]
[1755288197437,0.06,184.37,184.36,63.86690271]
[1755288197606,0.06,184.38,184.37,15.10621557]
[1755288197801,0.06,184.38,184.37,23.8092903]
[1755288198243,0.06,184.39,184.38,23.14690271]
[1755288198244,1e-08,184.39,184.38,23.14690271]
[1755288198409,1e-08,184.4,184.39,15.10621557]
[1755288198746,1e-08,184.4,184.39,64.46923146]
[1755288198910,0.06,184.42,184.39,64.46923146]
[1755288199106,0.06,184.47,184.41,49.14690271]
[1755288199437,0.06,184.47,184.42,23.14690271]
[1755288199614,0.74,184.47,184.42,54.14309251]
[1755288199807,3.59525911,184.46,184.42,54.14309251]
[1755288200008,4.33525911,184.47,184.42,54.14309251]
[1755288200206,0.74,184.43,184.35,13.56102638]
[1755288200510,0.74,184.43,184.34,0.12]
[1755288200511,8.78068714,184.43,184.38,8.04068714]
[1755288200711,0.06,184.43,184.4,8.04068714]
[1755288200909,0.06,184.43,184.39,40.76]
[1755288201332,0.74,184.43,184.39,40.76]
[1755288201639,0.06,184.43,184.39,48.80068714]
[1755288201820,0.68,184.42,184.39,48.80068714]
[1755288202411,0.68,184.41,184.39,40.76]
[1755288203017,8.72068714,184.4,184.36,0.03]
[1755288203218,8.04068714,184.37,184.36,0.03]
[1755288203616,14.14456304,184.37,184.36,0.03]
[1755288203814,14.14456304,184.37,184.34,0.03]
[1755288204016,12.30729155,184.36,184.34,0.03]
[1755288204230,0.68,184.36,184.34,0.03]
[1755288204548,8.04068714,184.36,184.34,0.03]
[1755288204713,8.72068714,184.35,184.34,0.03]
[1755288205308,0.68,184.35,184.34,0.03]
[1755288205513,8.04068714,184.37,184.34,0.03]
[1755288206032,0.68,184.37,184.34,0.03]
[1755288206213,0.68,184.36,184.34,0.03]
[1755288206608,0.68,184.35,184.34,0.03]
[1755288207534,0.68,184.41,184.34,8.07068714]
[1755288207721,3.64856993,184.43,184.4,13.46368063]
[1755288207921,0.06,184.43,184.4,13.46368063]
[1755288208328,0.06,184.43,184.41,8.04068714]
[1755288208527,0.06,184.43,184.42,8.04068714]
[1755288209336,0.74,184.43,184.41,48.82068714]
[1755288209735,0.06,184.43,184.41,40.78]
[1755288209942,0.06,184.43,184.42,8.04068714]
[1755288210118,0.74,184.43,184.41,40.78]
[1755288210325,0.68,184.42,184.41,40.78]
[1755288210633,0.68,184.42,184.4,8.04068714]
[1755288211029,0.06,184.43,184.39,5.42306543]
[1755288211229,0.68,184.41,184.35,26.0]
[1755288211438,0.68,184.41,184.38,8.04068714]
[1755288211678,0.68,184.41,184.35,72.18446433]
[1755288211818,0.68,184.41,184.38,8.04068714]
[1755288212023,8.04068714,184.39,184.34,0.03]
[1755288212346,8.04068714,184.35,184.34,0.03]
[1755288212713,0.68,184.35,184.32,0.03]
[1755288212913,8.04068714,184.33,184.32,0.03]
[1755288213341,3.58856993,184.35,184.32,0.03]
[1755288213536,26.0,184.31,184.3,0.03]
[1755288213823,26.0,184.31,184.25,0.03]
[1755288213824,5.42593597,184.3,184.25,0.03]
[1755288214175,8.04068714,184.26,184.25,0.03]
[1755288214330,8.04068714,184.26,184.22,0.03]
[1755288214513,8.04068714,184.24,184.22,0.03]
[1755288214920,8.72068714,184.24,184.22,0.03]
[1755288215338,8.72068714,184.23,184.2,0.03]
[1755288215554,34.04068714,184.21,184.2,0.03]
[1755288215751,39.46927407,184.21,184.2,0.03]
[1755288215932,39.46927407,184.21,184.19,0.03]
[1755288215933,51.77427057,184.21,184.19,0.03]
[1755288216258,26.0,184.18,184.17,0.03]
[1755288216438,37.6249965,184.18,184.17,0.03]
[1755288216753,42.29702714,184.18,184.12,0.2]
[1755288217057,12.03271778,184.15,184.12,0.2]
[1755288217243,12.03271778,184.16,184.12,5.63109311]
[1755288217442,12.71271778,184.17,184.12,5.63109311]
[1755288217641,0.68,184.17,184.12,17.66381089]
[1755288217856,12.03271778,184.18,184.12,17.66381089]
[1755288218048,0.68,184.21,184.17,12.03271778]
[1755288218253,0.68,184.21,184.12,6.08109311]
[1755288218254,12.71271778,184.24,184.18,12.03271778]
[1755288218563,52.85271778,184.25,184.2,12.06271778]
[1755288218745,3.58036999,184.24,184.2,12.06271778]
[1755288218941,0.68,184.24,184.2,12.06271778]
[1755288219458,12.71271778,184.24,184.2,0.03]
[1755288219630,0.68,184.23,184.2,0.03]
[1755288219835,12.71271778,184.23,184.2,0.03]
[1755288220057,52.85271778,184.25,184.2,12.06271778]
[1755288220255,38.71271778,184.26,184.21,12.03271778]
[1755288220447,38.03271778,184.28,184.22,12.03271778]
[1755288220651,3.57936333,184.27,184.22,12.03271778]
[1755288220846,3.57936333,184.27,184.23,12.03271778]
[1755288221155,3.57936333,184.28,184.23,12.03271778]
[1755288221758,3.57936333,184.28,184.24,12.03271778]
[1755288221936,41.61208111,184.29,184.25,5.42740841]
[1755288222140,4.25936333,184.28,184.25,5.42740841]
[1755288222367,12.71271778,184.32,184.27,12.03271778]
[1755288222538,4.26043864,184.31,184.26,12.03271778]
[1755288222730,0.68,184.3,184.25,17.46012619]
[1755288223055,4.26043864,184.3,184.25,17.46012619]
[1755288223262,4.26043864,184.3,184.26,12.03271778]
[1755288223566,3.58043864,184.3,184.26,12.03271778]
[1755288223852,3.58043864,184.3,184.26,5.42682196]
[1755288224066,0.68,184.29,184.25,12.03271778]
[1755288224237,3.58043864,184.29,184.25,12.03271778]
[1755288224435,72.18503109,184.34,184.27,12.03271778]
[1755288224436,4.26043864,184.32,184.27,12.03271778]
[1755288224747,3.58043864,184.33,184.28,12.03271778]
[1755288225145,0.65,184.32,184.28,12.03271778]
[1755288225346,4.23043864,184.32,184.28,12.03271778]
[1755288225747,4.23043864,184.32,184.27,12.03271778]
[1755288226245,12.03271778,184.28,184.23,12.03271778]
[1755288226555,12.68271778,184.28,184.23,12.03271778]
[1755288227059,0.65,184.31,184.24,12.03271778]
[1755288227258,0.65,184.31,184.23,15.10621557]
[1755288227259,26.65,184.31,184.23,15.10621557]
[1755288227560,26.65,184.31,184.26,12.03271778]
[1755288227561,3.57853601,184.3,184.26,12.03271778]
[1755288227773,3.57853601,184.3,184.24,0.45]
[1755288228061,3.57853601,184.3,184.27,5.42681934]
[1755288228558,46.18479601,184.34,184.27,5.42681934]
[1755288228559,53.44271778,184.34,184.29,12.03271778]
[1755288228748,3.58021136,184.33,184.29,12.03271778]
[1755288229136,3.58021136,184.33,184.3,12.03271778]
[1755288229946,3.58021136,184.33,184.3,17.4586251]
[1755288230152,3.58021136,184.33,184.3,5.42590732]
[1755288230543,0.65,184.32,184.27,12.03271778]
[1755288230871,16.26292914,184.32,184.27,12.03271778]
[1755288231158,12.68271778,184.32,184.27,5.42673679]
[1755288231365,4.23350036,184.31,184.24,12.03271778]
[1755288231565,12.03271778,184.3,184.24,12.03271778]
[1755288231743,3.58350036,184.29,184.24,12.03271778]
[1755288231941,4.23350036,184.29,184.24,12.03271778]
[1755288232164,12.03271778,184.26,184.21,17.49125357]
[1755288232363,0.65,184.25,184.21,17.49122354]
[1755288232569,0.65,184.27,184.21,5.90850576]
[1755288232862,41.27,184.29,184.23,12.03271778]